fUST/lending_fUST_20240427
["ID","MTS","AMOUNT","RATE_DAILY","PERIOD"]
[323738232,1714225833409,-159.773885,0.00019178,2]
[323738234,1714225833425,-153.0,0.00019183,2]
[323738237,1714225833442,-153.6757428,0.00019315,2]
[323738240,1714225833455,-482.0,0.000194,3]
[323738243,1714225833473,-309.65937468,0.0001967,2]
[323738246,1714225833493,-309.69031278,0.0001967,2]
[323738249,1714225833510,-1580.11190625,0.0001967,2]
[323738251,1714225833523,-2462.5477554,0.0001967,2]
[323738254,1714225833540,-207.96786164,0.0001967,2]
[323738256,1714225833554,-309.65937468,0.00019671,2]
[323738259,1714225833567,-283.62097024,0.00019671,2]
[323738261,1714225833583,-155.49455346,0.00019671,2]
[323738264,1714225833597,-501.8777164,0.00019671,2]
[323738266,1714225833611,-186.21643528,0.00019672,2]
[323738269,1714225833626,-162.10297212,0.00019674,2]
[323738272,1714225833640,-938.81449525,0.00019772,2]
[323738274,1714225833654,-265.48559288,0.00019774,2]
[323738277,1714225833669,-156.41543586,0.00019774,2]
[323738279,1714225833683,-167.62975277,0.00019774,2]
[323738282,1714225833698,-154.84515485,0.00019775,2]
[323738284,1714225833713,-22842.80330679,0.00019776,2]
[323738287,1714225833732,-569.0,0.00019776,2]
[323738290,1714225833749,-3937.36815683,0.00019776,2]
[323738430,1714225838440,-408.87824963,0.00013797,2]
[323738432,1714225838450,-582.44269037,0.00019776,2]
[323738495,1714225840566,-520.25388846,0.0001868,2]
[323738497,1714225840576,-2008.32905229,0.00019776,2]
[323738500,1714225840587,-1013.66372662,0.00019776,2]
[323738824,1714225843592,-614.6482949,0.0001868,2]
[323738826,1714225843602,-134.46484339,0.00019776,2]
[323739077,1714225846378,-434.70160342,0.00019776,2]
[323739078,1714225846390,-6191.61656356,0.00019776,2]
[323739259,1714226337710,400.0,0.000266,120]
[323739260,1714226446258,400.0,0.000266,120]
[323739261,1714226476694,377.60835518,0.000266,120]
[323739269,1714226825156,-1057.60563749,0.00013595,2]
[323739270,1714226825177,-1395.16482312,0.00013596,2]
[323739271,1714226825197,-164.04462217,0.00013597,2]
[323739272,1714226825217,-300.0,0.00013597,2]
[323739273,1714226825237,-300.0,0.00013597,2]
[323739274,1714226825257,-549.78691953,0.00013598,2]
[323739275,1714226825277,-6933.99606226,0.00013598,2]
[323739276,1714226825297,-22000.0,0.000136,2]
[323739277,1714226825317,-279.43046941,0.00013697,2]
[323739278,1714226825336,-420.0,0.00014902,2]
[323739279,1714226825356,-420.0,0.00014957,2]
[323739280,1714226825376,-928.19592699,0.00014958,2]
[323739281,1714226825398,-219.46284,0.00014971,2]
[323739282,1714226825419,-157.13367824,0.00015,2]
[323739283,1714226825439,-2100.50593903,0.00015,2]
[323739284,1714226825459,-24900.0,0.00015003,2]
[323739285,1714226825480,-587.0,0.00016333,2]
[323739286,1714226825503,-587.0,0.00016452,2]
[323739287,1714226825523,-272.70165246,0.00017005,2]
[323739288,1714226825543,-628.00301293,0.00017006,2]
[323739289,1714226825564,-663.0,0.00017901,2]
[323739290,1714226825585,-3133.32659327,0.00018,7]
[323739291,1714226825606,-823.0,0.00018098,2]
[323739292,1714226825634,-603.57234398,0.00018675,2]
[323739293,1714226825656,-1472.14662944,0.00018676,2]
[323739294,1714226825677,-2000.0,0.000188,2]
[323739295,1714226825698,-1735.38019087,0.00018896,2]
[323739296,1714226825718,-154.84515485,0.00018896,2]
[323739297,1714226825737,-157.85138427,0.00018896,2]
[323739298,1714226825757,-154.84515485,0.00018896,2]
[323739299,1714226825777,-579.63919765,0.00018896,2]
[323739300,1714226825797,-1491.10873787,0.00018896,2]
[323739301,1714226825816,-160.58737193,0.00018896,2]
[323739302,1714226825836,-14577.80590189,0.00018896,2]
[323739303,1714226826160,-6699.38950573,0.00018896,2]
[323739304,1714226827232,-19996.62076368,0.00013599,2]
[323739305,1714226830146,-190.6808952,0.00012949,2]
[323739306,1714226830167,-9168.73448763,0.00013599,2]
[323739307,1714226949203,-486.1573481,0.00013591,2]
[323739308,1714226949224,-206.17044886,0.00013591,2]
[323739309,1714226949245,-719.84911317,0.00013592,2]
[323739310,1714226949266,-1202.83854325,0.00013593,2]
[323739311,1714226949288,-300.0,0.00013598,2]
[323739312,1714226949309,-22192.77916389,0.00013599,2]
[323739335,1714227032515,-155.16949658,0.00014294,2]
[323739337,1714227032524,-306.26925342,0.00014394,2]
[323739403,1714227038713,-1737.55210848,0.00014394,2]
[323739404,1714227038722,-155.16949656,0.00016546,2]
[323739405,1714227038732,-157.13367824,0.00016568,2]
[323739406,1714227038741,-164.04462217,0.00016569,2]
[323739407,1714227038750,-329.194261,0.0001657,2]
[323739408,1714227038759,-1272.8490852,0.00016929,2]
[323739409,1714227038769,-603.57234398,0.000185,2]
[323739410,1714227038777,-132896.98824181,0.00018793,2]
[323740249,1714227047633,-272.70165246,0.00016545,2]
[323740251,1714227047644,-3462.01423825,0.00018793,2]
[323740253,1714227047656,-261.81,0.00018793,2]
[323741303,1714228036143,-164.04462217,0.00013498,2]
[323741304,1714228036165,-155.16949656,0.00013499,2]
[323741305,1714228036187,-550.41831117,0.00013597,2]
[323741306,1714228036207,-154.97468803,0.00013599,2]
[323741307,1714228036227,-164.59713,0.00014683,2]
[323741308,1714228036248,-157.13367824,0.00015908,2]
[323741309,1714228036268,-423.55847974,0.00015909,2]
[323741310,1714228036289,-300.0,0.0001591,2]
[323741311,1714228036309,-300.0,0.0001591,2]
[323741312,1714228036330,-59189.32928802,0.00015911,2]
[323741313,1714228036351,-373486.43398413,0.00015911,2]
[323741315,1714228054112,-164.04462217,0.00015909,2]
[323741316,1714228054133,-287.16335869,0.0001591,2]
[323741317,1714228054153,-8619.47620318,0.00015911,2]
[323741361,1714228232694,-154.82968734,0.00015819,2]
[323741362,1714228232704,-161.40506967,0.00015819,2]
[323741369,1714228232753,-558.4440435,0.00015819,2]
[323741371,1714228232763,-155.08819604,0.0001582,2]
[323741373,1714228232773,-169.715228,0.00015844,2]
[323741375,1714228232782,-250.0,0.00015883,2]
[323741377,1714228232791,-300.0,0.00015911,2]
[323741379,1714228232800,-300.0,0.00015911,2]
[323741381,1714228232810,-24900.0,0.00015912,2]
[323741382,1714228232819,-164.04462217,0.00017204,2]
[323741384,1714228232828,-272.70165246,0.00017205,2]
[323741385,1714228232837,-420.0,0.00017398,2]
[323741386,1714228232846,-420.0,0.00017503,2]
[323741387,1714228232857,-93996.88522657,0.00018691,2]
[323741458,1714228238792,-272.70165246,0.000165,2]
[323741460,1714228238801,-9046.17141928,0.00018691,2]
[323741504,1714228239195,-18408.40511154,0.00018691,2]
[323741984,1714228243985,-288721.79692582,0.00018691,2]
[323741986,1714228243995,-1816.01390276,0.00018691,2]
[323741988,1714228244005,-44444.0,0.00018693,2]
[323741990,1714228244015,-402.1581804,0.00018791,2]
[323741992,1714228244023,-44012.27980851,0.00018793,7]
[323741994,1714228244033,-14561.32770124,0.00018793,2]
[323741996,1714228244041,-153.0,0.000188,2]
[323741998,1714228244050,-1058.74458658,0.00018894,2]
[323741999,1714228244060,-2032.42908875,0.00018894,7]
[323742002,1714228244071,-206.17044886,0.00018894,2]
[323742004,1714228244081,-826.13174466,0.00018894,2]
[323742006,1714228244090,-774.66369448,0.00018895,2]
[323742008,1714228244099,-927.87368973,0.00018895,2]
[323742010,1714228244107,-1926.5996414,0.00018895,2]
[323742012,1714228244116,-7870.62977803,0.00018897,2]
[323742015,1714228244126,-803.1310944,0.000189,2]
[323742036,1714228244230,-459.8,0.0001893,3]
[323742038,1714228244239,-1816.01390274,0.00018943,2]
[323742040,1714228244248,-189.30063706,0.0001897,2]
[323742042,1714228244258,-212.18025179,0.00018996,2]
[323742044,1714228244267,-268.93,0.00018997,2]
[323742046,1714228244276,-238.23958198,0.00019,2]
[323742048,1714228244285,-7930.56704238,0.00019,2]
[323742050,1714228244294,-587.0,0.00019024,2]
[323742052,1714228244303,-159.773885,0.00019178,2]
[323742054,1714228244312,-1816.01390274,0.00019196,2]
[323742056,1714228244321,-587.0,0.00019253,2]
[323742058,1714228244331,-1816.01390274,0.00019448,2]
[323742060,1714228244340,-5000.0,0.000195,2]
[323742062,1714228244349,-150.0,0.0001964,2]
[323742064,1714228244358,-417.0,0.0001964,2]
[323742066,1714228244367,-542.59246717,0.00019676,2]
[323742068,1714228244376,-1816.01390274,0.000197,2]
[323742070,1714228244385,-459.8,0.000197,3]
[323742072,1714228244394,-312.79447259,0.00019775,2]
[323742074,1714228244403,-4494.25712407,0.00019775,2]
[323742076,1714228244413,-53734.24554354,0.00019776,2]
[323742078,1714228244422,-2612.43521073,0.00019776,2]
[323742080,1714228244431,-319.59325,0.00019776,2]
[323742082,1714228244441,-530.98562336,0.00019776,2]
[323742084,1714228244450,-156.81922557,0.00019776,2]
[323742086,1714228244460,-50321.32708037,0.00019777,2]
[323742088,1714228244469,-1406.10913875,0.00019777,2]
[323742090,1714228244478,-708776.26560782,0.00019778,2]
[323742285,1714228246811,-154.87609295,0.0001869,2]
[323742288,1714228246822,-8915.80809109,0.00019778,2]
[323742290,1714228246835,-15000.0,0.00019778,2]
[323743255,1714229244128,-154.82968734,0.00013687,2]
[323743256,1714229244148,-1621.09215219,0.00013687,2]
[323743257,1714229244167,-526.63352259,0.00013688,2]
[323743258,1714229244186,-362.18450158,0.00013688,2]
[323743259,1714229244205,-2625.35839845,0.00013688,2]
[323743260,1714229244226,-1491.10873787,0.00013689,2]
[323743261,1714229244246,-1091.11259634,0.00013689,2]
[323743262,1714229244268,-164.04462217,0.00013689,2]
[323743263,1714229244287,-308.65492652,0.0001369,2]
[323743264,1714229244307,-472.36268614,0.0001369,2]
[323743265,1714229244328,-300.0,0.0001369,2]
[323743266,1714229244347,-459.94893698,0.00013691,2]
[323743267,1714229244366,-173.32023845,0.00013691,2]
[323743268,1714229244386,-158.81572532,0.00013691,2]
[323743269,1714229244405,-1312.48943229,0.00013692,2]
[323743270,1714229244426,-343.757475,0.00013699,2]
[323743271,1714229244445,-167.428806,0.00013699,2]
[323743272,1714229244467,-24900.0,0.00014288,2]
[323743273,1714229244486,-4309.95463971,0.00014529,2]
[323743274,1714229244506,-250.0,0.00014727,2]
[323743275,1714229244526,-300.0,0.00014728,2]
[323743276,1714229244546,-420.0,0.00015059,2]
[323743277,1714229244565,-1200.76089313,0.00015065,2]
[323743278,1714229244585,-1268.5637123,0.0001516,2]
[323743279,1714229244604,-2868.8655512,0.00015237,2]
[323743280,1714229244624,-1221.30919959,0.00015811,2]
[323743281,1714229244643,-221.54605298,0.00015911,2]
[323743282,1714229244663,-6094.98479833,0.00015911,2]
[323743283,1714229244683,-155.43415499,0.00015911,2]
[323743284,1714229244706,-420.0,0.00016123,2]
[323743285,1714229244725,-718.33821317,0.000162,2]
[323743286,1714229244746,-587.0,0.00016564,2]
[323743287,1714229244766,-548.0,0.00017651,2]
[323743288,1714229244785,-1221.30919959,0.00018,2]
[323743289,1714229244804,-955.9274359,0.00018207,2]
[323743290,1714229244824,-823.0,0.00018221,2]
[323743291,1714229244844,-535.4207296,0.000189,2]
[323743292,1714229244863,-395.7,0.0001893,3]
[323743293,1714229244882,-189.30063706,0.00018998,2]
[323743294,1714229244902,-154.84515485,0.00018999,2]
[323743295,1714229244921,-7930.56704238,0.00019,2]
[323743296,1714229244940,-159.773885,0.00019178,2]
[323743297,1714229244961,-818.06067443,0.00019574,2]
[323743298,1714229244979,-486.1573481,0.00019574,2]
[323743299,1714229244999,-468.63626257,0.00019575,2]
[323743300,1714229245019,-271894.70374809,0.00019576,2]
[323743330,1714229431956,-4353.31293514,0.00014727,2]
[323743331,1714229431966,-486.1573481,0.00017818,2]
[323743332,1714229431975,-164.04462217,0.00017819,2]
[323743333,1714229431984,-2217.4094023,0.00018359,2]
[323743334,1714229431993,-356.94715307,0.000189,2]
[323743335,1714229432003,-189.30063706,0.0001897,2]
[323743336,1714229432012,-7930.56704238,0.00019,2]
[323743337,1714229432021,-300.0,0.00019474,2]
[323743338,1714229432030,-2000.0,0.00019476,2]
[323743339,1714229432039,-215.1183486,0.00019476,2]
[323743340,1714229432048,-682.40395319,0.00019574,2]
[323743341,1714229432057,-476.62545631,0.00019574,2]
[323743342,1714229432066,-526.34246905,0.00019574,2]
[323743343,1714229432076,-2624.05891831,0.00019574,2]
[323743344,1714229432085,-1575.88620405,0.00019574,2]
[323743345,1714229432095,-154.84515485,0.00019574,2]
[323743346,1714229432105,-568.62101834,0.00019575,2]
[323743347,1714229432114,-362.0981443,0.00019575,2]
[323743348,1714229432123,-1019.8814425,0.00019575,2]
[323743349,1714229432133,-322.80494239,0.00019575,2]
[323743350,1714229432142,-1092.25519119,0.00019575,2]
[323743351,1714229432151,-2770.32080583,0.00019576,2]
[323743394,1714229438440,-648.51680753,0.00019576,2]
[323743395,1714229438452,-665.44394689,0.00019576,2]
[323743396,1714229438464,-9284.99768889,0.00019576,2]
[323743558,1714229440135,-24900.0,0.00018726,2]
[323743560,1714229440145,-120700.10142212,0.00019576,2]
[323743562,1714229440157,-4209.17426386,0.00019576,2]
[323743564,1714229440167,-154.82968734,0.00019576,2]
[323743565,1714229440176,-729.7450776,0.00019576,2]
[323743567,1714229440185,-538.74898362,0.00019576,2]
[323743569,1714229440194,-19193.57611322,0.00019576,2]
[323743570,1714229440203,-284.93516068,0.00019576,2]
[323743572,1714229440212,-10569.57951094,0.00019577,2]
[323745518,1714230430125,-154.81422293,0.0001385,2]
[323745519,1714230430149,-154.81422293,0.0001385,2]
[323745520,1714230430172,-154.81422293,0.0001385,2]
[323745521,1714230430193,-154.81422293,0.00013851,2]
[323745522,1714230430216,-154.81422293,0.00013852,2]
[323745523,1714230430239,-308.65492652,0.00013852,2]
[323745524,1714230430260,-468.70122511,0.00013852,2]
[323745525,1714230430280,-164.04462217,0.00013853,2]
[323745526,1714230430300,-154.81422293,0.00013853,2]
[323745527,1714230430320,-154.81422293,0.00013853,2]
[323745528,1714230430342,-154.81422293,0.00013854,2]
[323745529,1714230430362,-486.1573481,0.00013854,2]
[323745530,1714230430384,-300.0,0.00013855,2]
[323745531,1714230430405,-300.0,0.00013855,2]
[323745532,1714230430429,-475.03872929,0.00013855,2]
[323745533,1714230430449,-521.8093147,0.00013855,2]
[323745534,1714230430469,-1312.48943229,0.00013856,2]
[323745535,1714230430490,-212.18025179,0.00013856,2]
[323745536,1714230430510,-1202.83854325,0.00013857,2]
[323745537,1714230430531,-198.1060217,0.00013869,2]
[323745538,1714230430554,-167.428807,0.00013951,2]
[323745539,1714230430575,-283.685823,0.00014391,2]
[323745540,1714230430595,-2778.37153564,0.00015,2]
[323745541,1714230430615,-154.81422293,0.00015,2]
[323745542,1714230430635,-420.0,0.00015182,2]
[323745543,1714230430660,-939.04672329,0.00015188,2]
[323745544,1714230430772,-628.43790721,0.00015189,2]
[323745545,1714230430795,-420.0,0.00015241,2]
[323745546,1714230430818,-24900.0,0.00016421,2]
[323745547,1714230430840,-587.0,0.00016635,2]
[323745548,1714230430862,-587.0,0.00016765,2]
[323745549,1714230430882,-154.82968734,0.00017451,2]
[323745550,1714230430904,-768.26768042,0.00017798,2]
[323745551,1714230430923,-154.81422293,0.00018,2]
[323745552,1714230430945,-823.0,0.00018227,2]
[323745553,1714230430965,-823.0,0.00018442,2]
[323745554,1714230430986,-423.24946758,0.00018782,2]
[323745555,1714230431007,-717.0,0.000189,3]
[323745556,1714230431030,-1418.36275157,0.000189,2]
[323745557,1714230431050,-154.81422293,0.00019,2]
[323745558,1714230431071,-154.82968734,0.00019319,2]
[323745559,1714230431092,-154.82968734,0.00019319,2]
[323745560,1714230431112,-154.82968734,0.0001932,2]
[323745561,1714230431132,-461.92467003,0.0001932,2]
[323745562,1714230431153,-180.29576103,0.0001932,2]
[323745563,1714230431174,-344.70455256,0.0001932,2]
[323745564,1714230431195,-181.20668877,0.0001932,2]
[323745565,1714230431215,-460.31934583,0.0001932,2]
[323745566,1714230431236,-500.0,0.0001932,2]
[323745567,1714230431257,-204.40737382,0.0001932,2]
[323745568,1714230431278,-473.24759483,0.0001932,2]
[323745569,1714230431298,-93319.25107606,0.00019321,2]
[323745599,1714230632397,-939.04672329,0.00017385,2]
[323745600,1714230632407,-164.04462217,0.00017385,2]
[323745601,1714230632419,-154.81422293,0.00017386,2]
[323745602,1714230632429,-1202.83854325,0.00017386,2]
[323745603,1714230632439,-767.86268077,0.00017387,2]
[323745604,1714230632450,-283.685823,0.00017609,2]
[323745605,1714230632460,-1141.871554,0.00018,2]
[323745606,1714230632470,-300.0,0.00018432,2]
[323745607,1714230632480,-300.0,0.00018432,2]
[323745608,1714230632490,-24900.0,0.00018434,2]
[323745609,1714230632500,-1000.0,0.000185,2]
[323745610,1714230632510,-945.57516772,0.000189,2]
[323745611,1714230632520,-1000.0,0.00019,2]
[323745612,1714230632530,-500.0,0.00019178,2]
[323745613,1714230632542,-500.0,0.00019178,2]
[323745614,1714230632552,-500.0,0.00019178,2]
[323745615,1714230632562,-500.0,0.00019178,2]
[323745616,1714230632573,-500.0,0.00019178,2]
[323745617,1714230632584,-500.0,0.00019178,2]
[323745618,1714230632595,-500.0,0.00019178,2]
[323745619,1714230632607,-500.0,0.00019178,2]
[323745620,1714230632619,-500.0,0.00019178,2]
[323745621,1714230632630,-500.0,0.00019178,2]
[323745622,1714230632640,-500.0,0.00019178,2]
[323745623,1714230632652,-500.0,0.00019178,2]
[323745624,1714230632758,-500.0,0.00019178,2]
[323745625,1714230632769,-500.0,0.00019178,2]
[323745626,1714230632779,-500.0,0.00019178,2]
[323745627,1714230632789,-500.0,0.00019178,2]
[323745628,1714230632799,-500.0,0.00019178,2]
[323745629,1714230632808,-500.0,0.00019178,2]
[323745630,1714230632818,-500.0,0.00019178,2]
[323745631,1714230632828,-500.0,0.00019178,2]
[323745632,1714230632838,-500.0,0.00019178,2]
[323745633,1714230632847,-500.0,0.00019178,2]
[323745634,1714230632858,-500.0,0.00019178,2]
[323745635,1714230632867,-500.0,0.00019178,2]
[323745636,1714230632877,-500.0,0.00019178,2]
[323745637,1714230632887,-500.0,0.00019178,2]
[323745638,1714230632896,-500.0,0.00019178,2]
[323745639,1714230632908,-500.0,0.00019178,2]
[323745640,1714230632918,-500.0,0.00019178,2]
[323745641,1714230632928,-500.0,0.00019178,2]
[323745642,1714230632937,-500.0,0.00019178,2]
[323745643,1714230632947,-500.0,0.00019178,2]
[323745644,1714230632958,-500.0,0.00019178,2]
[323745645,1714230632967,-500.0,0.00019178,2]
[323745646,1714230632976,-500.0,0.00019178,2]
[323745647,1714230632986,-500.0,0.00019178,2]
[323745648,1714230632995,-500.0,0.00019178,2]
[323745649,1714230633004,-500.0,0.00019178,2]
[323745650,1714230633014,-500.0,0.00019178,2]
[323745651,1714230633023,-500.0,0.00019178,2]
[323745652,1714230633033,-481.26251671,0.00019178,2]
[323745653,1714230633043,-500.0,0.00019178,2]
[323745654,1714230633052,-500.0,0.00019178,2]
[323745655,1714230633062,-500.0,0.00019178,2]
[323745656,1714230633073,-500.0,0.00019178,2]
[323745657,1714230633082,-500.0,0.00019178,2]
[323745658,1714230633091,-500.0,0.00019178,2]
[323745659,1714230633102,-500.0,0.00019178,2]
[323745660,1714230633111,-500.0,0.00019178,2]
[323745661,1714230633121,-250.0,0.00019178,2]
[323745662,1714230633131,-500.0,0.00019178,2]
[323745663,1714230633140,-500.0,0.00019178,2]
[323745664,1714230633150,-500.0,0.00019178,2]
[323745665,1714230633160,-2000.0,0.00019221,2]
[323745666,1714230633171,-192.95522994,0.00019221,2]
[323745667,1714230633180,-192.9552299,0.00019246,2]
[323745668,1714230633190,-192.9552299,0.0001927,2]
[323745669,1714230633199,-192.9552299,0.00019295,2]
[323745670,1714230633209,-628.22016239,0.00019301,2]
[323745671,1714230633220,-154.86061926,0.00019319,2]
[323745672,1714230633230,-539.38994365,0.00019319,2]
[323745673,1714230633239,-467.82953429,0.00019319,2]
[323745674,1714230633248,-413.31701289,0.00019319,2]
[323745675,1714230633258,-186.21643528,0.00019319,2]
[323745676,1714230633268,-324.16455531,0.00019319,2]
[323745677,1714230633278,-192.9552299,0.00019319,2]
[323745678,1714230633289,-391.30040941,0.0001932,2]
[323745679,1714230633299,-154.99034952,0.0001932,2]
[323745680,1714230633309,-212.12287173,0.0001932,2]
[323745681,1714230633319,-154.86061926,0.0001932,2]
[323745682,1714230633329,-1836.52651178,0.0001932,2]
[323745683,1714230633339,-271.78635617,0.0001932,2]
[323745684,1714230633349,-157.87515636,0.0001932,2]
[323745685,1714230633359,-308.45469812,0.0001932,2]
[323745686,1714230633369,-218.16572455,0.0001932,2]
[323745687,1714230633378,-167.64521718,0.0001932,2]
[323745688,1714230633388,-227.43718462,0.0001932,2]
[323745689,1714230633397,-521.54841812,0.0001932,2]
[323745690,1714230633406,-235.19608314,0.0001932,2]
[323745691,1714230633419,-155.0290767,0.0001932,2]
[323745692,1714230633428,-155.11969841,0.0001932,2]
[323745693,1714230633437,-316854.00760715,0.00019321,2]
[323745694,1714230633446,-154.81422293,0.00019321,2]
[323745695,1714230633455,-280.68822047,0.00019321,2]
[323745696,1714230633465,-200.0,0.00019321,2]
[323745697,1714230633474,-19193.57611322,0.00019321,2]
[323745698,1714230633484,-154.81422293,0.00019321,2]
[323745699,1714230633493,-729.7450776,0.00019321,2]
[323745700,1714230633503,-284.93516068,0.00019321,2]
[323745701,1714230633512,-14692.98707253,0.00019321,2]
[323745702,1714230633522,-165.11392771,0.00019321,2]
[323745703,1714230633532,-154.81422293,0.00019321,2]
[323745704,1714230633541,-154.81422293,0.00019321,2]
[323745705,1714230633550,-154.81422293,0.00019321,2]
[323745706,1714230633560,-40546.92512943,0.00019322,2]
[323745754,1714230638259,-500.0,0.00019319,2]
[323745755,1714230638269,-500.0,0.00019319,2]
[323745756,1714230638278,-500.0,0.00019319,2]
[323745757,1714230638287,-373.12625168,0.00019319,2]
[323745758,1714230638297,-3897.07487057,0.00019322,2]
[323745759,1714230638306,-156.41543586,0.00019419,2]
[323745760,1714230638316,-265.48559288,0.0001942,2]
[323745761,1714230638325,-22842.80330679,0.0001942,2]
[323745762,1714230638334,-35209.82384681,0.00019422,7]
[323745763,1714230638343,-59189.32928802,0.00019422,2]
[323745764,1714230638352,-6087.65681212,0.00019475,2]
[323745765,1714230638361,-1000.0,0.000195,2]
[323745766,1714230638371,-159.39243488,0.00019577,2]
[323745767,1714230638382,-155.14502178,0.00019577,2]
[323745768,1714230638392,-189.5,0.00019577,2]
[323745769,1714230638401,-154.82968734,0.00019577,2]
[323745770,1714230638411,-155.29350389,0.0001958,2]
[323745771,1714230638420,-717.0,0.0001967,3]
[323745772,1714230638429,-981.19186942,0.00019674,2]
[323745773,1714230638438,-259.28184344,0.00019674,2]
[323745774,1714230638447,-154.97593234,0.00019674,2]
[323745775,1714230638458,-155.05870745,0.00019675,2]
[323745776,1714230638467,-417.0,0.00019676,2]
[323745777,1714230638476,-150.0,0.00019676,2]
[323745778,1714230638486,-11115.5594338,0.000197,2]
[323745779,1714230638496,-1326.82107961,0.00019771,2]
[323745780,1714230638505,-548.87198569,0.00019771,2]
[323745781,1714230638517,-1532.40244428,0.00019771,2]
[323745782,1714230638527,-155.11560788,0.00019771,2]
[323745783,1714230638538,-161.53757995,0.00019772,2]
[323745784,1714230638548,-154.84515485,0.00019774,2]
[323745785,1714230638559,-2588.41116025,0.00019774,2]
[323745786,1714230638569,-178.02014945,0.00019774,2]
[323745787,1714230638579,-603.57234398,0.00019774,2]
[323745788,1714230638588,-312.71080906,0.00019774,2]
[323745789,1714230638598,-1394.84245865,0.00019774,2]
[323745790,1714230638698,-367.00914871,0.00019774,2]
[323745791,1714230638709,-2099.98323324,0.00019774,2]
[323745792,1714230638719,-157.08875643,0.00019774,2]
[323745793,1714230638728,-1676.30195278,0.00019774,2]
[323745794,1714230638738,-1490.71180475,0.00019774,2]
[323745795,1714230638747,-155.27286322,0.00019774,2]
[323745796,1714230638757,-193.65224844,0.00019775,2]
[323745797,1714230638766,-154.99913714,0.00019775,2]
[323745798,1714230638777,-242.41998623,0.00019775,2]
[323745799,1714230638786,-154.96859357,0.00019775,2]
[323745800,1714230638795,-259.4890615,0.00019775,2]
[323745801,1714230638804,-526.48799582,0.00019775,2]
[323745802,1714230638813,-154.98593327,0.00019775,2]
[323745803,1714230638823,-709.89305319,0.00019775,2]
[323745804,1714230638833,-472.12357594,0.00019775,2]
[323745805,1714230638843,-5803.44361904,0.00019775,2]
[323745806,1714230638852,-1087.28742838,0.00019776,2]
[323745807,1714230638861,-302.66777167,0.00019776,2]
[323745808,1714230638870,-235.64384072,0.00019776,2]
[323745809,1714230638878,-189.24695719,0.00019776,2]
[323745810,1714230638888,-156.08493432,0.00019776,2]
[323745811,1714230638897,-296.02935564,0.00019776,2]
[323745812,1714230638906,-154.92430991,0.00019776,2]
[323745813,1714230638915,-155.10461655,0.00019776,2]
[323745814,1714230638925,-155.00091065,0.00019776,2]
[323745815,1714230638934,-304.35784918,0.00019776,2]
[323745816,1714230638943,-452.02174071,0.00019776,2]
[323745817,1714230638952,-1878.59086756,0.00019776,2]
[323745818,1714230638961,-2624.70865838,0.00019776,2]
[323745819,1714230638970,-2711.23048874,0.00019776,2]
[323745820,1714230638980,-283.61550818,0.00019776,2]
[323745821,1714230638990,-154.91582231,0.00019776,2]
[323745822,1714230638999,-384.49803605,0.00019776,2]
[323745823,1714230639009,-276.84219559,0.00019776,2]
[323745824,1714230639019,-196990.75990946,0.00019778,2]
[323745825,1714230639032,-41538.98991271,0.00019778,2]
[323745829,1714230639626,-15000.0,0.00019778,2]
[323745898,1714230641139,-302.0,0.00019778,2]
[323745972,1714230643390,-1061.68195144,0.00019778,2]
[323745974,1714230643402,-1148.31760222,0.00019778,2]
[323746260,1714230646216,-284.93516068,0.00019321,2]
[323746262,1714230646226,-23.24038847,0.00019321,2]
[323746662,1714231031918,637.52742374,0.00023,30]
[323746663,1714231104806,812.8,0.000225,30]
[323746675,1714231225619,-154.81422293,0.00014518,2]
[323746676,1714231225640,-154.81422293,0.00014518,2]
[323746677,1714231225659,-470.37155414,0.00014518,2]
[323746678,1714231258174,-154.81422293,0.00014516,2]
[323746679,1714231258196,-154.81422293,0.00014517,2]
[323746680,1714231258438,-30.37155414,0.00014517,2]
[323746682,1714231302991,-154.81422293,0.00014516,2]
[323746683,1714231303064,-260.74310828,0.00014517,2]
[323746684,1714231355402,-300.0,0.00014517,2]
[323746685,1714231355433,-300.0,0.00014517,2]